Cogmind - Beta 13 @@@ ROGUE MODE // 2024.04.04 @ 21:19:52 Player: double j Result: Self-destructed Performance ------------- Evolutions (2) 1000 Regions Visited (4) 800 Robots Destroyed (5) 25 Value Destroyed (206) 206 Prototype IDs (3) 60 Alien Tech Used (0) 0 Bonus (35) 35 TOTAL SCORE: 2126 Bonus ------- Follower Combat Kills 35 Cogmind --------- Core Integrity 102/550 Matter 280/300 Energy 100/100 System Corruption 0% Temperature Cool (5) Movement Core (50) Location -8/Materials Parts ------- > --- POWER (1) -------- (None) > --- PROPULSION (2) --- (None) > --- UTILITY (6) ------ Improved Signal Interpreter > --- WEAPON (2) ------- (None) > --- INVENTORY (5) ---- Faulty Heavy Ion Engine Light Nuclear Core Cooling System Peak State ------------ > --- POWER ------------ Ion Engine > --- PROPULSION ------- Armored Wheel > --- UTILITY ---------- Small Storage Unit Structural Scanner Improved Signal Interpreter Terrain Scanner Seismic Detector > --- WEAPON ----------- Improved Medium Laser Light Assault Rifle > --- INVENTORY -------- Light Nuclear Core Cooling System [Rating: 14] Favorites ----------- Power Light Ion Engine Engine Light Ion Engine Propulsion Armored Wheel Leg Aluminum Leg Wheel Armored Wheel Utility Small Storage Unit Device Structural Scanner Storage Small Storage Unit Processor Improved Signal Interpreter Weapon Light Assault Rifle Energy Gun Improved Medium Laser Ballistic Gun Light Assault Rifle Launcher Grenade Launcher Build | -11 -10 -9 -9 -8 ------- Run | Yrd Mat Mat Min Mat Slots Evolved 4 | . . 2 . 2 Power . | . . . . . Propulsion . | . . . . . Utility 4 | . . 2 . 2 Weapon . | . . . . . Parts Attached 15 | 6 4 2 1 2 Power 3 | 2 . . 1 . Engine 3 | 2 . . 1 . Core . | . . . . . Reactor . | . . . . . Propulsion 4 | 2 2 . . . Treads . | . . . . . Leg 2 | 2 . . . . Wheel 2 | . 2 . . . Hover . | . . . . . Flight . | . . . . . Utility 5 | 1 1 2 . 1 Device 3 | . 1 2 . . Storage 1 | 1 . . . . Processor 1 | . . . . 1 Hackware . | . . . . . Protection . | . . . . . Artifact . | . . . . . Weapon 3 | 1 1 . . 1 Energy Gun 1 | . . . . 1 Energy Cannon . | . . . . . Ballistic Gun 1 | 1 . . . . Ballistic Cannon . | . . . . . Launcher 1 | . 1 . . . Special Weapon . | . . . . . Impact Weapon . | . . . . . Slashing Weapon . | . . . . . Piercing Weapon . | . . . . . Special Melee Weapon . | . . . . . Unidentified Prototypes 1 | . . . . 1 Parts Lost 11 | . . 3 . 8 Power 2 | . . 1 . 1 Propulsion 2 | . . 1 . 1 Utility 4 | . . . . 4 Weapon 3 | . . 1 . 2 Highest Loss Streak 8 | . . 3 . 8 To Critical Strikes . | . . . . . Average Slot Usage (%) 82 | . 90 87 77 65 Engine 10 | . 14 8 11 6 Leg 4 | . 9 . . . Wheel 14 | . 18 18 11 7 Device 20 | . 12 30 33 21 Storage 11 | . 14 11 11 8 Processor 2 | . . . . 8 Energy Gun 1 | . . . . 6 Ballistic Gun 11 | . 14 11 11 6 Launcher 4 | . 6 7 . . Naked Turns . | . . . . . Heaviest Build 17 | 9 13 15 14 17 Greatest Support 24 | 20 24 24 12 12 Greatest Overweight (x) 1 | 1 . . 1 1 Average Overweight (x) . | . . . 1 . Largest Inventory Capacity 8 | 8 8 8 8 8 Average Capacity 7 | 7 8 8 8 7 Most Carried 5 | 2 5 5 3 4 Average Carried 2 | . 3 4 3 2 Final Capacity 8 | 8 8 8 8 5 Final Carried 5 | 1 5 4 3 3 Class Distribution -------------------- 100% | Mutant Dominant Class ---------------- Mutant | -10/Materials Mutant | -9/Materials Mutant | -9/Mines Mutant | -8/Materials Resources | -11 -10 -9 -9 -8 ----------- Run | Yrd Mat Mat Min Mat Matter Collected 351 | 221 111 . . 19 Remotely . | . . . . . Salvage Created 173 | . 125 . . 48 Parts 7 | . 5 . . 2 Haulers Intercepted . | . . . . . Recyclers Shooed 1 | . 1 . . . Parts Field Recycled . | . . . . . Retrieved Matter . | . . . . . Parts Self-Destructed . | . . . . . Prevented . | . . . . . Kills | -11 -10 -9 -9 -8 ------- Run | Yrd Mat Mat Min Mat Combat Hostiles Destroyed 5 | . 4 . . 1 Guns 2 | . 1 . . 1 AOE 3 | . 3 . . . Classes Destroyed 1 | . 1 . . . Grunt 5 | . 4 . . 1 Best Kill Streak 2 | . 2 . . 1 Combat Bots Only 2 | . 2 . . 1 Max Kills in Single Turn 1 | . 1 . . 1 Gunslinging . | . . . . . Exploded 1 | . 1 . . . Melee . | . . . . . Uniques/NPCs Destroyed . | . . . . . Combat | -11 -10 -9 -9 -8 -------- Run | Yrd Mat Mat Min Mat Hostile Shots Fired 109 | . 20 20 . 69 Missed 32 | . 6 6 . 20 Damage Taken 1341 | . 225 223 . 893 Core 504 | . 41 15 . 448 Absorbed by Shields . | . . . . . Core Remaining (%) 93 | 100 83 . 96 . Volleys Fired 35 | . 18 4 . 13 Largest 1 | . 1 1 . 1 Hottest 56 | . 30 30 . 56 Shots Fired 35 | . 18 4 . 13 Gun 29 | . 13 3 . 13 Cannon . | . . . . . Launcher 6 | . 5 1 . . Special . | . . . . . Kinetic 16 | . 13 3 . . Thermal 13 | . . . . 13 Explosive 6 | . 5 1 . . Electromagnetic . | . . . . . Robot Hit Streak 5 | . 5 5 . 4 Robot Miss Streak 2 | . 2 . . 2 Penetration Max . | . . . . . Secondary Targets . | . . . . . Shots Hit Robots 23 | . 11 4 . 8 Core Hits 11 | . 8 1 . 2 Critical Kills . | . . . . . Critical Parts Destroyed . | . . . . . Critical Strikes . | . . . . . Melee Attacks . | . . . . . Impact . | . . . . . Slashing . | . . . . . Piercing . | . . . . . Sneak Attacks . | . . . . . Combat Hostiles . | . . . . . Follow-up Attacks . | . . . . . Damage Inflicted 535 | . 357 40 . 138 Guns 227 | . 69 20 . 138 Cannons . | . . . . . Explosions 308 | . 288 20 . . Melee . | . . . . . Ramming . | . . . . . Kinetic 89 | . 69 20 . . Thermal 138 | . . . . 138 Explosive 308 | . 288 20 . . Electromagnetic . | . . . . . Impact . | . . . . . Slashing . | . . . . . Piercing . | . . . . . Highest Corruption . | . . . . . Average Corruption . | . . . . . Corruption Purged . | . . . . . Corruption Blocked . | . . . . . Overload Shots . | . . . . . Overflow Damage . | . . . . . Projectiles . | . . . . . Explosions . | . . . . . Melee . | . . . . . Knockbacks . | . . . . . Impact . | . . . . . Kinetic . | . . . . . Secondary . | . . . . . Self-Inflicted Damage 50 | . 35 15 . . Shots 2 | . 1 1 . . Rammed . | . . . . . Targets Rammed . | . . . . . Kicked . | . . . . . Crushed . | . . . . . Highest Temperature 85 | . 10 . . 85 Average Temperature 24 | . 6 . . 29 Received Heat Transfer 573 | . 105 63 . 405 Siege Activations . | . . . . . Robots Corrupted . | . . . . . Combat Hostiles . | . . . . . Parts Fried . | . . . . . Impact Corruptions . | . . . . . Robots Melted . | . . . . . Combat Hostiles . | . . . . . Parts Melted . | . . . . . Heat Transferred 296 | . . . . 296 Parts Sabotaged . | . . . . . Parts Stolen . | . . . . . Parts Stripped . | . . . . . Power Chain Reactions . | . . . . . Alert | -11 -10 -9 -9 -8 ------- Run | Yrd Mat Mat Min Mat Peak Influence 151 | . 151 93 26 53 Initial 63 | . . 63 26 9 Average 37 | . 49 74 26 20 Maximum Alert Level . | . . . . . Low Security (%) 100 | 100 100 100 100 100 Level 1 . | . . . . . Level 2 . | . . . . . Level 3 . | . . . . . Level 4 . | . . . . . Level 5 . | . . . . . High Security . | . . . . . Max Security . | . . . . . Squads Dispatched 3 | . 3 . . . Investigation 2 | . 2 . . . Extermination . | . . . . . Reinforcement 1 | . 1 . . . Assault . | . . . . . Garrison . | . . . . . Intercept . | . . . . . Searches Triggered . | . . . . . Construction Impeded . | . . . . . Haulers Reinforced . | . . . . . Active Scanning Responses . | . . . . . Cargo Convoy Interrupts . | . . . . . Stealth | -11 -10 -9 -9 -8 --------- Run | Yrd Mat Mat Min Mat Distress Signals 1 | . 1 . . . Communications Jammed . | . . . . . Distress Signals . | . . . . . Times Spotted 14 | . 5 3 . 6 Peak Tracking Total 5 | . 3 3 . 5 Tactical Retreats . | . . . . . Traps | -11 -10 -9 -9 -8 ------- Run | Yrd Mat Mat Min Mat Traps Triggered . | . . . . . Indirectly . | . . . . . Trap Hack Attempts . | . . . . . Triggered . | . . . . . Disarmed . | . . . . . Reprogrammed . | . . . . . Reused . | . . . . . Traps Extracted . | . . . . . Installed . | . . . . . Triggered . | . . . . . Machines | -11 -10 -9 -9 -8 ---------- Run | Yrd Mat Mat Min Mat Machines Disabled 1 | . 1 . . . Max in Single Turn 1 | . 1 . . . Machines Repaired . | . . . . . Machines Dismantled . | . . . . . Machines Sabotaged . | . . . . . Overloaded Fab Kills . | . . . . . Hacking | -11 -10 -9 -9 -8 --------- Run | Yrd Mat Mat Min Mat Machines Accessed 3 | . 3 . . . Terminals 2 | . 2 . . . Fabricators . | . . . . . Repair Stations . | . . . . . Recycling Units 1 | . 1 . . . Scanalyzers . | . . . . . Garrison Access . | . . . . . Total Hacks 11 | . 11 . . . Successful 5 | . 5 . . . Failed 6 | . 6 . . . Catastrophic . | . . . . . Database Lockouts . | . . . . . Manual . | . . . . . Terminals 7 | . 7 . . . Fabricators . | . . . . . Repair Stations . | . . . . . Recycling Units 4 | . 4 . . . Scanalyzers . | . . . . . Garrison Access . | . . . . . Terminal Hacks 3 | . 3 . . . Record 2 | . 2 . . . Prototype ID Bank 1 | . 1 . . . Fabricator Hacks . | . . . . . Repair Station Hacks . | . . . . . Recycling Unit Hacks 2 | . 2 . . . Process 1 | . 1 . . . Report Inventory 1 | . 1 . . . Scanalyzer . | . . . . . Garrison Access Hacks . | . . . . . Unauthorized Hacks . | . . . . . Terminals . | . . . . . Fabricators . | . . . . . Repair Stations . | . . . . . Recycling Units . | . . . . . Scanalyzers . | . . . . . Garrison Access . | . . . . . Data Cores Recovered 1 | . . . . 1 Used . | . . . . . Hacking Detections 3 | . 3 . . . Full Trace Events 2 | . 2 . . . Feedback Events . | . . . . . Feedback Blocked . | . . . . . Robot Schematics Acquired . | . . . . . Robots Built . | . . . . . Authchips . | . . . . . Time . | . . . . . Total Robot Build Rating . | . . . . . Part Schematics Acquired . | . . . . . Parts Built . | . . . . . Authchips . | . . . . . Time . | . . . . . Total Part Build Rating . | . . . . . Parts Repaired . | . . . . . Time . | . . . . . Parts Recycled . | . . . . . Recycled Matter 183 | . 183 . . . Retrieved Matter . | . . . . . Retrieved Components . | . . . . . Parts Scanalyzed . | . . . . . Part Schematics Acquired . | . . . . . Parts Damaged . | . . . . . Bothacking | -11 -10 -9 -9 -8 ------------ Run | Yrd Mat Mat Min Mat Used RIF Installer . | . . . . . Robots Hacked . | . . . . . Non-combat . | . . . . . Combat . | . . . . . Robot Hacks Applied . | . . . . . Relay Couplers Released . | . . . . . Fabnet Peak Effective % . | . . . . . Robots Rewired . | . . . . . Allies Hacked . | . . . . . Hacks Repelled . | . . . . . Allies | -11 -10 -9 -9 -8 -------- Run | Yrd Mat Mat Min Mat Total Allies 2 | . . . 2 . Largest Group 2 | . . . 2 2 Highest-Rated Group 54 | . . . 54 54 Highest-Rated Ally 31 | . . . 31 31 Total Orders . | . . . . . Ally Attacks 12 | . . . . 12 Total Damage 170 | . . . . 170 Kills 3 | . . . . 3 Allies Corrupted . | . . . . . Allies Melted . | . . . . . Intel | -11 -10 -9 -9 -8 ------- Run | Yrd Mat Mat Min Mat Robot Analysis Total . | . . . . . Derelict Logs Recovered . | . . . . . Drone Launches . | . . . . . Drone Recoveries . | . . . . . Exploration | -11 -10 -9 -9 -8 ------------- Run | Yrd Mat Mat Min Mat Turns Passed 571 | 98 227 89 41 116 Spaces Moved 395 | 77 174 88 14 42 Core 13 | 13 . . . . Treads . | . . . . . Legs 119 | 64 55 . . . Wheels 263 | . 119 88 14 42 Hover . | . . . . . Flight . | . . . . . Fastest Speed 50 | 50 90 90 105 90 Average Speed 100 | 112 99 90 105 104 Slowest Speed 120 | 120 120 90 105 105 Overloaded Moves . | . . . . . Propulsion Burnouts . | . . . . . Robots Hopped . | . . . . . Cave-ins Triggered . | . . . . . Exploration Rate (%) 10 | 4 30 8 7 5 Regions Visited 4 Branch Regions 1 Pre-discovered Areas . | . . . . . Known Exits Taken . | . . . . . Unknown Exits Taken 4 | 1 1 1 1 . Scrap Searched . | . . . . . Spaces Dug . | . . . . . Terrain Destroyed 21 | . 17 4 . . Melee . | . . . . . Projectile . | . . . . . AOE 21 | . 17 4 . . Terrain Rammed . | . . . . . Walls Destroyed . | . . . . . Machines Disabled . | . . . . . Actions | -11 -10 -9 -9 -8 --------- Run | Yrd Mat Mat Min Mat Total 537 | 89 213 94 40 101 Wait 76 | . 8 . 26 42 Move 391 | 76 173 87 13 42 Hop . | . . . . . Pick Up 17 | 6 8 1 . 2 Fast Attach . | . . . . . Attach 15 | 6 4 2 1 2 Detach 1 | 1 . . . . Swap . | . . . . . Drop 2 | . 2 . . . Fire 35 | . 18 4 . 13 Melee . | . . . . . Ram . | . . . . . Kick . | . . . . . Crush . | . . . . . Escape Stasis . | . . . . . Rewire . | . . . . . Trap . | . . . . . Miscellaneous . | . . . . . Route ------- -11/Scrapyard -10/Materials -9/Materials -9/Mines -8/Materials History --------- Turn | Location | Event 17 | -11/Scrapyard | Discovered new exit (range 16) 99 | -11/Scrapyard | Entered Materials 314 | -10/Materials | Build established: Mutant 322 | -10/Materials | Discovered new exit (range 7) 326 | -10/Materials | Entered another Materials area 326 | -9/Materials | Evolved 2 slots: Utility x2 351 | -9/Materials | Discovered new exit (range 14) 415 | -9/Materials | Entered Mines 421 | -9/Mines | Discovered new exit (range 12) 429 | -9/Mines | Lost 3 parts (1p1n1w) 456 | -9/Mines | Entered Materials 456 | -8/Materials | Accompanied by 2 allies 456 | -8/Materials | Evolved 2 slots: Utility x2 461 | -8/Materials | Led the pair of lost Derelicts to an unsafe place 565 | -8/Materials | Core integrity fell below 50% 572 | -8/Materials | Self-destructed Last Messages --------------- L-31 Rogue destroyed. R-06 Scavenger destroyed. HD-U4B(g) overheating. HD-U4B(g) destroyed. K-01 Serf collects debris. E2-TO5(z) destroyed. K-01 Serf collects debris. G-47 Trooper destroyed. Ion Engine destroyed. Seismic Detector destroyed. Lgt. Assault Rifle destroyed. Critical hit (Burn: +37). Arm. Wheel destroyed. Structural Scanner destroyed. Terrain Scanner destroyed. Imp. Medium Laser destroyed. Sml. Storage Unit destroyed. K-01 Serf collects debris. Critical hit (Burn: +37). K-01 Serf collects debris. Map ----- +----------------------------------------------------+ | ?????????"" """ # ?????????????????????????????? | | ?????????"" """ !# ?????????????????????????????? | | ??????????" """ # ?????????????????????????????? | | ?????????? # ?????????????????????????????? | | ??????????? # ?????????????????????????????? | | ???????????? # ?????????????????????????????? | | ????????????? # ?????????????????????????????? | | ??????????? ? # ?????????????????????????????? | | ?????#???????## ##?????????????????????????????? | | ?????#???" ?? #% ##?????????????????????????????? | | ????????T? ? #* ##?????????????????????????????? | | ?????????? ? # ##?????????????????????????????? | | ??????????? # ##????+????????????????????????? | | ??? ## # # ? ???????????????????????????? | | ??? ########+## # ?????#???#?#?????????????????? | | ??? # # ? ?? ????????????????????????? | | ??? + % # ??????#??????????????????????? | | ??? # """ ! + ?? ????????#?????????????????? | | ??? # """ ! # ????????#?#?? ???????????????? | | ??? # """ ##?????????????? ??????????????? | | ??? # */! ##??######??????? ?????????????? | | ??? # !=! %* ##??#######????????????????????? | | ???## *%=/##T# ##??## !###????????????????????? | | ???###/###+#### ###### !###??#?##?????????????? | | ??? #### ######g !##????#???????????????? | | ???? ??"????## *k l@!##????????????????????? | | ?????????????## [ gg !##????????????????????? | | ?????????????## !###????????????????????? | | ?????????????## ###########????????????????????? | | ?????????????## ##########?????????????????????? | | ???????"?????#######????#????????????????????????? | | ?????????"???#######?#???????????????????????????? | | ???????? ????##???????#??????????????????????????? | | ??????????????????????????????#??????????????????? | | ?????????????????????????#???????????????????????? | | ?????????????????#???????????????????????????????? | | ???????????????????##????????????????????????????? | | ????????????????????##?????#?????????????????????? | | ?????????????????????????????????????????????????? | | ?????????????????????????????????????????????????? | | | | | | | | | | | | | | | | | | | | | +----------------------------------------------------+ Best States ------------- Heat Dissipation 31 Energy Generation 10 Energy Capacity 250 Matter Stores 281 Matter Capacity 300 Sight Range 16 Terrain Scan Range 14 Terrain Scan Density 10 Evasion (%) 55 Item Schematics ----------------- None Robot Schematics ------------------ None Fabricated ------------ Nothing Alien Tech Used ----------------- None Achievements -------------- Risk Taker Challenges ------------ None Game ------ Seed StormNeutrinoWell Manual? 0 Play Time 00:16:21 Cumulative 4.1 hours Start 2024.04.04 @ 21:00:14 End 2024.04.04 @ 21:19:52 Sessions 1 Manual Loads 0 Difficulty Rogue Special Mode None Game No. 9 Rogue 9 Adventurer 0 Explorer 0 Win Type - Total 0 Types 0/0/0/0/0/0/0/0/0 Lore% 5 Gallery% 8 Achievement% 10 Wizard Run 0 Options --------- Layout 1 ASCII 0 Keyboard 0 Movement Mouse Keybinds 0 Fullscreen 1 Font 24/Smallcaps Map View 50x35 Zoom Use 0% Tactical HUD 0 Map Filters NONE Filters NONE Steam 1 RUN: fb21091f-5b19-4f2f-9b45-7fd055f4febf